[Event "67th Mexican-ch Open 2022"]
[Site "Chihuahua"]
[Date "2022.04.16"]
[Round "6.20"]
[White "Jorajuria Mendoza, Algol"]
[Black "Gongora Montes, Benjamin"]
[Result "1/2-1/2"]
[ECO "C88"]
[WhiteElo "2006"]
[BlackElo "2157"]
[Annotator "TA"]
[PlyCount "144"]
[EventDate "2022.04.12"]
[EventType "swiss"]
[EventCountry "MEX"]
[SourceTitle "playchess.com"]
[Source "ChessBase"]
[SourceQuality "1"]
[TimeControl "5400+30"]

{[%evp 23,144,29,56,42,74,63,87,88,95,35,32,20,30,26,98,112,109,122,160,145,278,266,272,250,248,253,272,266,486,508,455,329,371,247,244,177,136,109,116,117,125,127,127,120,129,67,66,65,71,72,67,67,76,9,9,9,9,9,9,9,9,9,9,0,0,0,0,0,0,0,0,0,0,0,0,0,0,0,0,0,0,0,0,0,0,0,0,-56,-60,-60,-60,-60,0,0,0,0,0,0,0,0,0,0,0,0,0,0,0,0,0,0,0,0,0,0,0,0,0,0,0,0,0,0,0]} 1. e4 {[%emt 0:00:03]} e5 {[%emt 0:05:35]} 2. Nf3 {[%emt 0:00:05]} Nc6 {[%emt 0:00:05]} 3. Bb5 {[%emt 0:00:04]} a6 {[%emt 0:00:08]} 4. Ba4 {[%emt 0:00:04]} Nf6 {[%emt 0:00:05]} 5. O-O {[%emt 0:00:05]} Be7 {[%emt 0:00:09]} 6. Re1 {[%emt 0:00:06]} b5 {[%emt 0:00:08]} 7. Bb3 {[%emt 0:00:04]} O-O {[%emt 0:00:35]} 8. a4 {[%emt 0:00:21]} Rb8 {[%emt 0:00:07]} 9. axb5 {[%emt 0:00:24]} axb5 {[%emt 0:00:08]} 10. c3 {[%emt 0:00:11][%cal Bc2c3,Bc3d4,Bd4d5][%mdl 32]} d6 {[%emt 0:05:48]} 11. d4 $1 {[%emt 0:00:14] The main line 11.d4 scores better than 11.h3.} exd4 {[%emt 0:15:47]} 12. cxd4 {[%emt 0:00:07]} Bg4 {[%emt 0:00:08]} 13. Nc3 {[%emt 0:00:13] C88: Closed Ruy Lopez: Anti-Marshall Systems.} Qd7 {[%emt 0:03:01]} 14. d5 {[%emt 0:00:55] [#]} Nb4 $146 {[%emt 0:09:15]} ({Predecessor:} 14... Bxf3 15. gxf3 Ne5 16. f4 Qh3 17. Re3 Qh4 18. fxe5 Ng4 19. Qf3 Qxh2+ 20. Kf1 Nxe3+ 21. Bxe3 Qxe5 {1-0 (42) Volokitin,A (2634)-Votava,J (2529) Austria 2019}) 15. h3 {[%emt 0:46:11] White is better.} Bh5 {[%emt 0:03:29]} 16. Qd4 {[%emt 0:03:11]} ({White should play} 16. Bf4 $16) 16... c5 $14 {[%emt 0:01:09]} 17. dxc6 $1 {[%emt 0:01:13]} Nxc6 {[%emt 0:00:09]} 18. Qd3 {[%emt 0:00:50]} Rfe8 {[%emt 0:07:07] [#]} (18... Ne5 19. Nxe5 dxe5 20. Qxd7 Nxd7 21. Ra7 $16) (18... Bxf3 $11 {keeps the balance.} 19. Qxf3 Nd4) 19. Nd4 $1 $16 {[%emt 0:02:42] &Bianco is much more active.} Nxd4 {[%emt 0:12:49]} 20. Qxd4 {[%emt 0:00:02]} Bd8 {[%emt 0:00:09]} 21. Bf4 {[%emt 0:02:36]} Rb6 {[%emt 0:03:44]} (21... Bc7 $16 22. Qb4 Qd8) 22. Nd5 $18 {[%emt 0:02:06]} Nxd5 {[%emt 0:00:29]} 23. Qxd5 {[%emt 0:00:59]} Bg6 {[%emt 0:01:26]} 24. e5 {[%emt 0:00:33]} Bf5 {[%emt 0:06:08]} 25. exd6 {[%emt 0:00:48][%cal Od5f7]} Rxe1+ $2 {[%emt 0:00:39]} (25... Be6 26. Qc5 h6) 26. Rxe1 {[%emt 0:00:05][%cal Od5f7] Intending Qxf7+! and mate.} Be6 {[%emt 0:00:13] [#]} 27. Qe4 {[%emt 0:02:43]} g5 {[%emt 0:05:19]} (27... Rc6 28. Ra1) 28. Bxe6 {[%emt 0:03:05]} Qxe6 {[%emt 0:00:23]} 29. Qxe6 {[%emt 0:05:44]} fxe6 {[%emt 0:00:06][%mdl 4096] Endgame KRB-KRB} 30. Bg3 {[%emt 0:05:27]} ({Stronger than} 30. Rxe6 Kf7 31. Bxg5 Bxg5 $15) 30... Kf7 {[%emt 0:00:11]} 31. Ra1 {[%emt 0:00:10]} Rb7 {[%emt 0:01:20] Against Ra7} 32. Rc1 {[%emt 0:01:52][%cal Oc1c7]} Ke8 {[%emt 0:00:52]} 33. Rc5 {[%emt 0:02:02]} Kd7 {[%emt 0:00:36]} 34. Be5 {[%emt 0:01:48] Prevents Bf6.} (34. b4 $16) 34... Bb6 $14 {[%emt 0:01:02]} 35. Rc3 {[%emt 0:00:27]} b4 {[%emt 0:00:10]} 36. Rc4 {[%emt 0:01:35]} Ba5 {[%emt 0:02:30]} 37. Rg4 {[%emt 0:02:31]} Bd8 {[%emt 0:01:01]} 38. h4 {[%emt 0:02:18]} (38. Kf1 $16) 38... Rb5 $11 {[%emt 0:00:32]} 39. Re4 {[%emt 0:01:08] next hxg5 is good for White.} gxh4 {[%emt 0:00:34]} 40. f4 {[%emt 0:00:17]} Bb6+ {[%emt 0:04:24]} 41. Kh2 {[%emt 0:00:43]} Bc5 {[%emt 0:00:06]} 42. Kh3 {[%emt 0:01:03]} Bxd6 {[%emt 0:01:18]} 43. Kxh4 {[%emt 0:00:43]} Bxe5 {[%emt 0:01:14]} 44. fxe5 {[%emt 0:00:05] KR-KR} Kc6 {[%emt 0:00:26]} 45. Kg5 {[%emt 0:03:24]} Kd5 {[%emt 0:00:27]} 46. Re2 {[%emt 0:00:32]} Rb8 {[%emt 0:02:53]} 47. Kf6 {[%emt 0:00:35]} Rf8+ {[%emt 0:00:41]} 48. Kg7 {[%emt 0:00:05]} Rf5 {[%emt 0:00:05]} 49. Kxh7 {[%emt 0:00:02] Hoping for g4.} Rxe5 {[%emt 0:00:10]} 50. Rd2+ {[%emt 0:00:44]} Ke4 {[%emt 0:01:34]} 51. Kg6 {[%emt 0:00:19] Against Rg5+} Rc5 {[%emt 0:05:27] ...e5 is the strong threat.} 52. Rd6 {[%emt 0:01:47]} e5 {[%emt 0:01:14][%cal Be6e5,Be5e4,Be4e3][%mdl 32]} 53. Rb6 {[%emt 0:00:04]} Kd3 {[%emt 0:00:49] Threatens to win with ...e4.} 54. Rxb4 {[%emt 0:00:23]} e4 {[%emt 0:00:05] aiming for ...e3.} 55. Rb6 {[%emt 0:01:43]} ({But not} 55. Rb3+ Kd2 56. Rb8 e3 57. Rd8+ Ke2 $17) (55. Rb7 $11) 55... e3 $15 {[%emt 0:01:25][%mdl 1024] White must now prevent ...Re5. Black has compensation.} 56. Rd6+ {[%emt 0:00:41]} Ke4 {[%emt 0:00:21] ( -> ...e2)} 57. Rd1 $1 {[%emt 0:00:10]} ({Not} 57. Re6+ $2 Re5 58. Ra6 e2 59. Ra4+ Ke3 $19) 57... Rc2 {[%emt 0:01:40]} (57... e2 $1 $15 58. Re1 Ke3) 58. g4 $1 $11 {[%emt 0:00:11] The position is equal.} Rg2 {[%emt 0:00:39]} 59. g5 {[%emt 0:00:15]} Rxb2 {[%emt 0:01:14]} 60. Re1 {[%emt 0:00:55]} Kf3 {[%emt 0:00:36]} 61. Kf7 {[%emt 0:00:19]} Rb7+ {[%emt 0:00:33]} 62. Kf6 {[%emt 0:00:07]} Rb6+ {[%emt 0:00:20]} 63. Kf7 {[%emt 0:00:06]} Kf2 {[%emt 0:00:26]} 64. Rxe3 {[%emt 0:00:10]} Kxe3 {[%emt 0:00:07] KR-KP} 65. g6 {[%emt 0:00:04]} Kf4 {[%emt 0:00:28]} 66. g7 {[%emt 0:00:05]} Rb7+ {[%emt 0:00:08]} 67. Kf6 {[%emt 0:00:12]} Rb8 {[%emt 0:00:07]} 68. Kf7 {[%emt 0:00:14]} Kf5 {[%emt 0:00:08]} 69. g8=Q {[%emt 0:00:05]} Rb7+ {[%emt 0:00:12]} 70. Kf8 {[%emt 0:00:04] White wants to mate with Qd5+.} Rb8+ {[%emt 0:00:07]} 71. Kg7 {[%emt 0:00:07]} Rxg8+ {[%emt 0:00:06]} 72. Kxg8 {[%emt 0:15:14]} Ke4 {[%emt 0:03:54] Black defended with fortune.  Weighted Error Value: White=0.15 (very precise) /Black=0.16 (very precise)} 1/2-1/2

[Event "67th Mexican-ch Open 2022"]
[Site "Chihuahua"]
[Date "2022.04.16"]
[Round "6.21"]
[White "Maass Garza R, Alejandro"]
[Black "Rivera Garcia, David Moises"]
[Result "1-0"]
[ECO "B59"]
[WhiteElo "2265"]
[BlackElo "1780"]
[Annotator "TA"]
[PlyCount "109"]
[EventDate "2022.04.12"]
[EventType "swiss"]
[EventCountry "MEX"]
[SourceTitle "playchess.com"]
[Source "ChessBase"]
[SourceQuality "1"]
[TimeControl "5400+30"]

{[%evp 22,109,-24,-14,-9,-14,0,0,0,0,20,22,37,37,37,42,50,47,69,65,64,58,86,31,72,62,115,106,127,127,122,123,124,110,120,115,118,116,133,135,139,130,130,137,143,123,163,160,195,194,197,210,208,197,301,160,337,335,314,308,513,496,613,616,1160,1154,5118,5118,4504,4504,3742,2752,7092,6319,6370,5481,29980,29981,29984,29985,29985,29986,29986,29987,29986,29986,29988,29989,29989,29990]} 1. e4 {[%emt 0:00:24]} c5 {[%emt 0:00:05]} 2. Nf3 {[%emt 0:00:08]} Nc6 {[%emt 0:00:06]} 3. d4 {[%emt 0:00:15]} cxd4 {[%emt 0:00:03]} 4. Nxd4 {[%emt 0:00:05]} e6 {[%emt 0:00:18]} 5. Nb3 {[%emt 0:02:41]} Nf6 {[%emt 0:00:10]} 6. Bd3 {[%emt 0:00:13]} Be7 {[%emt 0:00:11]} 7. O-O {[%emt 0:00:20]} O-O {[%emt 0:00:20]} 8. Bf4 {[%emt 0:03:16]} d6 {[%emt 0:00:37]} 9. Nc3 {[%emt 0:00:36]} e5 {[%emt 0:00:35]} 10. Bg3 {[%emt 0:00:28]} Be6 {[%emt 0:00:16]} 11. f4 {[%emt 0:00:48]} exf4 {[%emt 0:13:05]} 12. Bxf4 {[%emt 0:00:42]} Ne5 {[%emt 0:00:04] B59: Classical Sicilian: 6 Be2 e5 7 Nb3.} 13. Be2 {[%emt 0:04:39]} Qb6+ {[%emt 0:00:33]} 14. Qd4 {[%emt 0:00:37]} Qxd4+ {[%emt 0:02:26] The position is equal.} 15. Nxd4 {[%emt 0:00:07]} Ng6 {[%emt 0:00:07]} 16. Bg3 {[%emt 0:01:05]} Bd7 {[%emt 0:06:36]} 17. Nf5 {[%emt 0:05:28]} Bxf5 {[%emt 0:00:02]} 18. exf5 {[%emt 0:00:06]} Ne5 {[%emt 0:00:14]} 19. Rad1 $36 {[%emt 0:01:00][%mdl 2048] White has some pressure.} a6 {[%emt 0:00:39]} 20. Nd5 {[%emt 0:01:01]} Nxd5 {[%emt 0:00:19]} 21. Rxd5 {[%emt 0:00:10]} f6 {[%emt 0:00:10]} 22. c4 {[%emt 0:05:12]} (22. c3 $16) 22... Rac8 {[%emt 0:00:13]} 23. b3 {[%emt 0:00:32]} b6 {[%emt 0:05:53]} (23... Rc5 $14) 24. Rfd1 {[%emt 0:07:04]} Rfd8 {[%emt 0:01:15]} 25. Bf2 {[%emt 0:01:05]} Rb8 {[%emt 0:03:17]} 26. h3 {[%emt 0:10:05]} Kf8 {[%emt 0:02:08]} 27. Be1 {[%emt 0:00:44]} Rbc8 {[%emt 0:00:29]} 28. Bb4 {[%emt 0:01:31]} Rc6 {[%emt 0:01:08]} 29. g4 {[%emt 0:01:31]} Ke8 {[%emt 0:02:32]} 30. Kf2 {[%emt 0:00:51]} Rd7 {[%emt 0:00:27]} 31. Bf1 {[%emt 0:00:25]} Nf7 {[%emt 0:01:12]} 32. Bg2 {[%emt 0:01:53]} Rcc7 {[%emt 0:00:10]} 33. R5d2 {[%emt 0:00:46] 0x0.000e62c4cf4ddp-1022s more active pieces.} Rd8 {[%emt 0:07:31]} 34. Bd5 {[%emt 0:00:21]} Ng5 {[%emt 0:00:16]} 35. h4 {[%emt 0:01:06]} Nf7 {[%emt 0:00:17]} 36. Bxf7+ {[%emt 0:07:01]} Kxf7 {[%emt 0:00:03]} 37. Bxd6 {[%emt 0:00:49]} Rcd7 {[%emt 0:00:12]} (37... Rcc8 $142 38. a4 Rc6) 38. Bf4 {[%emt 0:00:07]} (38. Bb4 $18 Bc5+ 39. Kf3) 38... Bc5+ $2 {[%emt 0:00:13]} (38... Rxd2+ $16 {is a better defense.} 39. Rxd2 Rc8) 39. Kf3 $18 {[%emt 0:00:10]} Rxd2 {[%emt 0:00:18]} 40. Rxd2 {[%emt 0:00:07]} ({Weaker is} 40. Bxd2 Rd4 $11) 40... Rxd2 {[%emt 0:01:50]} (40... Rc8 41. Rd7+ Kg8) 41. Bxd2 {[%emt 0:00:08][%mdl 4096] Endgame KB-KB} Ke7 {[%emt 0:00:29]} 42. Be3 {[%emt 0:02:08] [#] Hoping for Bxc5+.} Kd6 {[%emt 0:02:03]} 43. Bxc5+ {[%emt 0:02:20]} bxc5 {[%emt 0:00:01] KP-KP} 44. Ke4 {[%emt 0:01:11]} Kc6 {[%emt 0:00:34]} 45. a3 {[%emt 0:02:57][%cal Ba2a3,Ba3a4][%mdl 32]} a5 {[%emt 0:00:04]} 46. Kd3 {[%emt 0:00:06]} Kc7 {[%emt 0:03:04]} 47. Kc3 {[%emt 0:00:28]} Kc6 {[%emt 0:00:07]} 48. b4 {[%emt 0:00:24] [#] Intending bxc5 and mate.} Kb6 {[%emt 0:00:05]} 49. bxc5+ {[%emt 0:00:50] White mates.} Kxc5 {[%emt 0:00:08]} 50. a4 {[%emt 0:00:14]} Kc6 {[%emt 0:00:11]} 51. Kd4 {[%emt 0:00:15]} Kd6 {[%emt 0:00:01]} 52. c5+ {[%emt 0:00:20]} Kc6 {[%emt 0:00:02]} 53. Kc4 {[%emt 0:00:09]} g6 {[%emt 0:00:51]} 54. fxg6 {[%emt 0:00:22]} hxg6 {[%emt 0:00:02]} 55. h5 {[%emt 0:40:39] Weighted Error Value: White=0.08 (flawless) /Black=0.49} 1-0

[Event "67th Mexican-ch Open 2022"]
[Site "Chihuahua"]
[Date "2022.04.16"]
[Round "6.22"]
[White "Lopez Raygoza, Luis Alberto"]
[Black "Almendarez Verdin, Manuel Adan"]
[Result "1-0"]
[ECO "C01"]
[WhiteElo "2207"]
[BlackElo "1662"]
[Annotator "TA"]
[PlyCount "111"]
[EventDate "2022.04.12"]
[EventType "swiss"]
[EventCountry "MEX"]
[SourceTitle "playchess.com"]
[Source "ChessBase"]
[SourceQuality "1"]
[TimeControl "5400+30"]

{[%evp 10,111,0,-1,0,0,1,-5,37,43,79,83,90,72,113,108,131,133,122,144,129,118,143,137,175,144,170,213,202,167,268,187,257,227,215,146,285,122,101,68,77,50,64,67,68,60,74,39,42,18,18,18,12,12,51,47,75,9,11,12,60,56,63,20,21,21,54,5,21,11,30,28,75,75,164,160,198,138,276,205,437,511,370,108,314,279,264,158,29973,29975,29972,29974,29976,29977,29981,29982,29982,29983,29983,29984,29984,29985,29988,29988]} 1. e4 {[%emt 0:04:08]} e6 {[%emt 0:00:22]} 2. d4 {[%emt 0:00:05]} d5 {[%emt 0:00:06]} 3. Bd3 {[%emt 0:00:11][%cal Bf1d3,Bd3e4,Be4f3][%mdl 32]} dxe4 {[%emt 0:01:00]} 4. Bxe4 {[%emt 0:00:06]} Nf6 {[%emt 0:00:13]} 5. Bf3 {[%emt 0:00:04]} c5 {[%emt 0:00:30]} 6. Ne2 {[%emt 0:00:27]} Nc6 {[%emt 0:00:47][%cal Rc5d4] C01: French: Exchange Variation.} 7. Be3 {[%emt 0:00:58]} cxd4 {[%emt 0:02:10]} 8. Nxd4 {[%emt 0:01:14]} Nxd4 {[%emt 0:00:18] The position is equal.} 9. Qxd4 {[%emt 0:01:40]} Qxd4 {[%emt 0:02:14]} 10. Bxd4 {[%emt 0:01:28]} Be7 {[%emt 0:00:06]} 11. Nc3 {[%emt 0:00:06][%cal Bb1c3,Bc3b5,Bb5d6][%mdl 32]} O-O {[%emt 0:00:32]} 12. O-O-O {[%emt 0:00:08]} Nd7 {[%emt 0:06:43] [#]} 13. Nb5 $146 {[%emt 0:06:27]} ({Predecessor:} 13. Rhe1 Bf6 14. Re4 Bxd4 15. Rexd4 Ne5 16. Be2 b6 17. f4 Nc6 18. Rd6 Na5 19. b4 {0-1 (62) Noordhoek,H (2004)-Ford,C (1781) Caleta 2017}) 13... Bc5 {[%emt 0:05:32]} 14. Bxc5 {[%emt 0:03:18] 0x0.001e7f237ef4dp-1022s more active pieces. The black rooks are badly placed.} Nxc5 {[%emt 0:00:10]} 15. b4 {[%emt 0:00:09][%cal Bb2b4,Bb4b5,Bb5b6][%mdl 32]} Nd7 {[%emt 0:03:48]} 16. Rhe1 $1 {[%emt 0:01:25] Prevents Ne5.} a5 {[%emt 0:03:11]} 17. Nd6 {[%emt 0:04:00]} Nf6 {[%emt 0:03:31]} 18. b5 {[%emt 0:02:47]} Rb8 {[%emt 0:05:07]} 19. b6 {[%emt 0:03:43]} Ra8 {[%emt 0:06:50]} (19... Bd7 $142 20. Re3 (20. Bxb7 Ne8 $14) (20. Nxb7 Bc8 $16) 20... Nd5) 20. g4 {[%emt 0:06:10]} (20. Nxb7 Bxb7 21. Bxb7 Rab8 $14) 20... Nd5 {[%emt 0:00:34]} (20... h6 $142 21. c4 (21. Bxb7 Bxb7 22. Nxb7 Rfb8 $15) 21... Rd8) 21. Bxd5 $18 {[%emt 0:00:54]} exd5 {[%emt 0:00:04]} 22. Nxc8 {[%emt 0:00:05]} ({But not} 22. Rxd5 Bxg4 23. Re7 (23. Nxb7 Bf3 $11) 23... Bf3) 22... Raxc8 {[%emt 0:00:46]} (22... Rfxc8 $16 23. Re7 (23. Rxd5 Rc6 $16) 23... Kf8 24. Rxb7 Rcb8 25. Rxb8+ (25. Ra7 Rxa7 26. bxa7 Ra8 $16) 25... Rxb8 26. Rxd5 Rxb6 27. Rxa5 Rh6 28. Ra8+ Ke7 29. Ra7+ Ke8) 23. Rxd5 {[%emt 0:00:09][%mdl 4096] Endgame KRR-KRR} (23. Re7 $18) 23... Rc6 $16 {[%emt 0:00:17]} 24. Rxa5 {[%emt 0:00:30] Hoping for Rb5.} Rxb6 {[%emt 0:00:08]} 25. Re7 {[%emt 0:02:35]} Rf6 {[%emt 0:00:39]} 26. Rf5 {[%emt 0:00:05]} Ra6 {[%emt 0:02:39]} 27. Rxb7 {[%emt 0:01:09]} Rxa2 {[%emt 0:00:18]} 28. Kb1 {[%emt 0:00:02]} Ra4 {[%emt 0:01:30]} 29. f3 {[%emt 0:01:01]} g6 {[%emt 0:00:07]} 30. Rfb5 {[%emt 0:02:39]} Rf4 {[%emt 0:00:46]} 31. Rb3 {[%emt 0:02:32]} Kg7 {[%emt 0:01:14]} 32. R7b4 {[%emt 0:01:04]} Rf6 {[%emt 0:00:47]} 33. Rb6 {[%emt 0:05:35]} (33. c4 $16) 33... Rf4 {[%emt 0:00:57]} 34. Kc1 {[%emt 0:00:14]} Rd8 {[%emt 0:01:15]} (34... Re8 $11) 35. R6b4 $1 $14 {[%emt 0:01:44]} Rf6 {[%emt 0:00:20]} 36. Re4 {[%emt 0:00:09]} Rfd6 {[%emt 0:04:19]} 37. Re2 {[%emt 0:01:14]} Ra8 {[%emt 0:01:28]} 38. Rd3 {[%emt 0:03:46]} (38. c4 $14) 38... Rc6 {[%emt 0:00:27]} 39. Kd2 {[%emt 0:06:31]} Ra2 {[%emt 0:02:13]} 40. Rc3 {[%emt 0:00:04]} Rxc3 {[%emt 0:02:23]} (40... Rd6+ $11 41. Ke1 h5) 41. Kxc3 $11 {[%emt 0:00:05] KR-KR} Ra3+ {[%emt 0:00:16]} (41... Ra8 $16 {keeps fighting.}) 42. Kd4 $18 {[%emt 0:05:50] Black must now prevent c4.} Rxf3 {[%emt 0:00:15]} 43. c4 $1 {[%emt 0:00:02][%cal Bc2c4,Bc4c5,Bc5c6,Bc6c7][%mdl 32] aiming for c5.} Rf4+ {[%emt 0:03:04] [#]} (43... Rf1 $16 {was called for.}) 44. Kd5 $1 {[%emt 0:00:05] c5 is the strong threat.} ({Less strong is} 44. Re4 Rf2 $14) 44... Rxg4 $2 {[%emt 0:00:59]} (44... Rf1 45. c5 Rd1+ 46. Kc6 Kf6) 45. c5 {[%emt 0:00:04] And now c6 would win.} Rg1 {[%emt 0:00:46]} 46. Rc2 $2 {[%emt 0:00:04]} (46. c6 $18 {and the rest is easy.}) 46... Rd1+ $2 {[%emt 0:03:21] [#]} (46... Kf6 $16) 47. Ke5 $1 {[%emt 0:00:16] Strongly threatening c6.} Kf8 {[%emt 0:00:42]} 48. c6 {[%emt 0:37:28] Intending c7 and mate.} Rd8 $2 {[%emt 0:01:07] Loses the game.} (48... Re1+ $16 49. Kd6 Rd1+ 50. Kc7 Ke7) 49. c7 {[%emt 0:00:00] White mates.} Rc8 {[%emt 0:00:06]} 50. Kd6 {[%emt 0:00:00]} f5 {[%emt 0:02:16]} 51. Kd7 {[%emt 0:00:00]} Rxc7+ {[%emt 0:00:07]} 52. Rxc7 {[%emt 0:00:00]} Kf7 {[%emt 0:00:12]} 53. Kd6+ {[%emt 0:00:00]} Kf6 {[%emt 0:00:40]} 54. Rxh7 {[%emt 0:00:00]} f4 {[%emt 0:00:17]} 55. Kd5 {[%emt 0:00:00]} Kf5 {[%emt 0:00:28]} 56. Rf7+ {[%emt 0:00:00] Weighted Error Value: White=0.25 (precise) /Black=0.42} 1-0

[Event "67th Mexican-ch Open 2022"]
[Site "Chihuahua"]
[Date "2022.04.16"]
[Round "6.23"]
[White "Guerrero Cataldo, Juan Andres"]
[Black "Rosales Campos, Paul"]
[Result "1-0"]
[ECO "E04"]
[WhiteElo "1976"]
[BlackElo "2039"]
[Annotator "TA"]
[PlyCount "113"]
[EventDate "2022.04.12"]
[EventType "swiss"]
[EventCountry "MEX"]
[SourceTitle "playchess.com"]
[Source "ChessBase"]
[SourceQuality "1"]
[TimeControl "5400+30"]

{[%evp 13,113,16,9,0,0,0,0,-27,11,0,46,0,0,-2,0,0,19,0,47,54,49,21,61,42,50,44,59,33,102,102,104,65,63,63,71,71,65,69,113,68,118,119,187,175,233,200,220,108,199,158,312,316,362,362,516,509,552,500,511,286,1274,1160,1145,1261,1159,1149,945,953,1263,1251,1214,1189,1628,1507,6387,5737,2390,1720,1407,1410,1289,1247,1554,1558,29984,29985,29985,29986,29986,29987,29993,29994,29994,29992,29992,29993,29993,29994,29994,29995,29995,29996]} 1. Nf3 {[%emt 0:00:07] Bulletin} e6 {[%emt 0:01:24]} 2. g3 {[%emt 0:00:07]} Nf6 {[%emt 0:00:38]} 3. Bg2 {[%emt 0:00:07]} d5 {[%emt 0:00:26]} 4. c4 {[%emt 0:00:02]} c5 {[%emt 0:03:34]} 5. O-O {[%emt 0:03:05]} Nc6 {[%emt 0:05:54]} 6. d4 {[%emt 0:00:31]} dxc4 {[%emt 0:09:50]} 7. Ne5 {[%emt 0:02:48]} Bd7 {[%emt 0:20:25]} 8. Nxd7 {[%emt 0:17:07] E04: Open Catalan: 5 Nf3.} Qxd7 {[%emt 0:01:11]} 9. dxc5 {[%emt 0:02:28]} Bxc5 {[%emt 0:09:59]} 10. Qa4 {[%emt 0:04:42] The position is equal.} Rc8 {[%emt 0:14:15]} 11. Nc3 {[%emt 0:07:22] [#]} h6 $146 {[%emt 0:16:24]} (11... Nd8 $11) ({Predecessor:} 11... Nd4 12. Qxd7+ Nxd7 13. Bxb7 Rb8 14. Ba6 Bb4 15. Bxc4 Bxc3 16. bxc3 Nc2 17. Bf4 e5 {0-1 (40) Hirn,O-Keller,M (2225) Bayern 1995 EXT 1999 [Bulletin]}) 12. Bf4 {[%emt 0:07:44]} (12. Rd1 $14 {was preferrable.} Qe7 13. Qxc4) 12... O-O $11 {[%emt 0:02:32]} 13. Rad1 {[%emt 0:00:08]} Qe7 {[%emt 0:01:04]} 14. Qxc4 {[%emt 0:01:52]} e5 {[%emt 0:04:02]} 15. Bc1 {[%emt 0:02:29]} a6 {[%emt 0:01:12]} (15... Nd4 $11 {is superior.}) 16. e3 {[%emt 0:00:27]} b5 {[%emt 0:00:52]} 17. Qe2 {[%emt 0:00:11]} Qe6 {[%emt 0:03:10]} 18. Nd5 {[%emt 0:03:28]} Nxd5 {[%emt 0:00:49]} 19. Bxd5 {[%emt 0:00:01]} Qg6 {[%emt 0:00:14]} 20. a3 {[%emt 0:00:55] Inhibits Nb4.} (20. Bg2 $5 {[%cal Ra2a4]}) 20... Kh8 {[%emt 0:01:46]} (20... e4 $14) 21. b4 $16 {[%emt 0:00:01]} Ba7 {[%emt 0:00:36]} 22. Qf3 {[%emt 0:01:06]} f5 {[%emt 0:00:35]} 23. Bb2 {[%emt 0:00:36]} e4 {[%emt 0:00:19]} 24. Qe2 {[%emt 0:01:10]} Bb8 {[%emt 0:00:38]} 25. Rc1 {[%emt 0:01:30]} Ne7 {[%emt 0:00:36] White now steadily converts the win.} 26. Bb3 {[%emt 0:00:32]} Rcd8 {[%emt 0:00:19]} (26... Rce8 $14) 27. Rfd1 {[%emt 0:01:46]} Bd6 {[%emt 0:00:32]} (27... Kh7 $16) 28. Rd2 $18 {[%emt 0:01:57]} Rde8 {[%emt 0:00:37]} (28... Bb8 $142 29. Rcd1 Rd6 30. Rxd6 Bxd6) 29. Rcd1 {[%emt 0:00:04]} Nc8 {[%emt 0:00:25]} 30. Bd5 {[%emt 0:00:55] A strong pair of Bishops.} (30. h4 $18 Be5 31. Bxe5 Rxe5 32. Rd7) 30... Re7 {[%emt 0:00:17]} (30... Nb6 $16 {was worth a try.}) 31. Rc2 {[%emt 0:01:38]} f4 $2 {[%emt 0:00:47] [#]} (31... Nb6 $16 {keeps fighting.} 32. Rc6 Nxd5) 32. exf4 {[%emt 0:01:54]} e3 {[%emt 0:00:29]} 33. Rc6 {[%emt 0:01:37][%cal Bc2c6,Bc6h6,Bh6a6,Ba6d6][%mdl 32] Against Nb6} ({Less strong is} 33. fxe3 Bxf4 34. Rd3 (34. Rc6 Bxe3+ 35. Qxe3 Qxc6 $16) 34... Be5 35. Bxe5 Rxe5 $18) 33... exf2+ {[%emt 0:00:23]} (33... Rc7 $142 34. fxe3 Rxc6) 34. Qxf2 {[%emt 0:00:00]} Qf5 {[%emt 0:00:35]} 35. Bg2 {[%emt 0:00:24]} Rd8 {[%emt 0:00:33]} 36. Be5 {[%emt 0:02:46]} Bc7 $2 {[%emt 0:00:11]} (36... Red7 37. Bd4 Bc7 38. Rxc7 Rxc7) 37. Rxd8+ {[%emt 0:00:26]} Bxd8 {[%emt 0:00:03]} 38. Rxh6+ {[%emt 0:00:01]} Kg8 {[%emt 0:00:48]} 39. Bd5+ {[%emt 0:00:28]} Rf7 {[%emt 0:00:08]} 40. Rxa6 {[%emt 0:01:28]} Ne7 {[%emt 0:00:57]} 41. Be6 {[%emt 0:00:32]} Qb1+ {[%emt 0:00:19]} 42. Qf1 {[%emt 0:00:45]} Qe4 {[%emt 0:00:31]} 43. Qxb5 {[%emt 0:05:25] [#] Strongly threatening Rd6.} Kf8 {[%emt 0:00:38]} 44. Bxf7 {[%emt 0:00:17]} Kxf7 {[%emt 0:00:13]} 45. Rd6 {[%emt 0:01:38]} ({Stronger than} 45. Qd7 Qe1+ 46. Kg2 Qe2+ 47. Kh3 Qh5+ 48. Kg2 Qe2+ 49. Kg1 Qe1+ 50. Kg2 Qe2+ $11) 45... Qe1+ {[%emt 0:01:12]} 46. Kg2 {[%emt 0:01:24] Threatening mate with Qc4+.} Qe4+ {[%emt 0:00:13]} 47. Kf2 {[%emt 0:00:20]} Qc2+ {[%emt 0:00:50]} 48. Qe2 {[%emt 0:00:34]} Qc8 {[%emt 0:00:17]} 49. Qh5+ {[%emt 0:00:27] White mates.} Kg8 {[%emt 0:00:45]} 50. Qe8+ {[%emt 0:00:04]} Kh7 {[%emt 0:00:05]} 51. Qxd8 {[%emt 0:01:21]} Qh3 {[%emt 0:00:21]} 52. Qxe7 {[%emt 0:00:45][%csl Ge5][%cal Re7g7]} Qxh2+ {[%emt 0:00:06]} 53. Ke3 {[%emt 0:00:16][%csl Ge5][%cal Re7g7]} Qxg3+ {[%emt 0:01:07]} 54. Kd4 {[%emt 0:00:04]} Qf2+ {[%emt 0:00:12]} 55. Kc4 {[%emt 0:00:01][%csl Ge5][%cal Re7g7]} Qe2+ {[%emt 0:00:55]} 56. Kb3 {[%emt 0:01:03][%csl Ge5][%cal Re7g7]} Qe3+ {[%emt 0:00:12]} 57. Ka4 {[%emt 0:00:18] Weighted Error Value: White=0.24 (precise) /Black=0.37} 1-0